Workbook

Sheet 19.20 Prelim 4.10.2019
A2: ACCT# | B2: EXPENSES | C2: BUDGET | D2: 2018/2019 | E2: BUDGET
B3: DESCRIPTION | C3: 2018/2019 | D3: 50% BUDGET | E3: 2019/2020 | F3: Notes
A4: 59022-2 | B4: Fire Vehicle Maintenance | C4: 5700 | D4: 2700 | E4: 3000
A5: 59040-2 | B5: Shop Supply/ Tools/ Equip | C5: 3500 | D5: 336 | E5: 2000
A6: 59043-2 | B6: Tires | C6: 750 | D6: 1556 | E6: 1200
A7: 59060-2 | B7: Radio Equipment | C7: 1500 | D7: 1162 | E7: 1500
A8: 59065-2 | B8: Clothing | C8: 2000 | D8: 244 | E8: 3000
A9: 59066-2 | B9: Foam / Fire Extinguishers | C9: 300 | D9: 186 | E9: 300
A10: 59070-2 | B10: Gen Medical / Fire Supply | C10: 3000 | D10: 760 | E10: 2100
A11: 59072-2 | B11: Office | C11: 700 | D11: 436 | E11: 700
A12: 59075-2 | B12: Fire Hose | C12: 800 | D12: 0 | E12: 800
A13: 59092-2 | B13: Annual Physicals | C13: 1100 | D13: 620 | E13: 1100
A14: 59093-2 | B14: Fire Protection | C14: 100 | D14: 0 | E14: 200
A15: 59100-2 | B15: FD Administrative Exp | C15: 29500 | D15: 14712 | E15: 30375
A16: 59101-2 | B16: Dues & Subscriptions | C16: 1400 | D16: 362 | E16: 1000
A17: 59110-2 | B17: Volunteer Expense | C17: 1500 | D17: 94 | E17: 1500
A18: 59120-2 | B18: Chief's Compensation | C18: 20941 | D18: 11180 | E18: 21928
A19: 59130-2 | B19: Drill & Response | C19: 11000 | D19: 4781 | E19: 11000
A20: 59140-2 | B20: Travel Expense | C20: 100 | D20: 0 | E20: 100
A21: 59200-2 | B21: Workers Comp. | C21: 11730 | D21: 6110 | E21: 19000
A22: 59320-2 | B22: FICA Exp | C22: 2484 | D22: 17088 | E22: 1615
A23: 59079-2 | B23: Fuel Expense | C23: 8500 | D23: 5253 | E23: 7500
A24: 59090-2 | B24: Training Expense | C24: 600 | D24: 0 | E24: 600
A25: 59330-2 | B25: Unemployment Exp. | C25: 2290 | D25: 1650 | E25: 378
A26: 59340-2 | B26: SDI Exp. | C26: 158 | D26: 1035 | E26: 110
A27: 59501-2 | B27: SCBA Testing | C27: 1200 | D27: 0 | E27: 1200
A28: 59610-2 | B28: Strike Team Wages Exp. | C28: 25000 | D28: 208102 | E28: 25000
A29: 59620-2 | B29: Strike Team Expense | C29: 1 | D29: 5165 | E29: 1
A30: 59630-2 | B30: Grant Writing | C30: 1000 | D30: 2040 | E30: 1000
A31: Xfer Out | B31: CSD Budget Expense | C31: 39878 | D31: 20847 | E31: 39475
B32: TOTAL COLUMN | C32: =SUM(C4:C31) -> 176732 | D32: =SUM(D4:D31) -> 306419 | E32: =SUM(E4:E31) -> 177682
A42: ACCT # | B42: REVENUE | C42: =C2 -> BUDGET | D42: =D2 -> 2018/2019 | E42: BUDGET | F42: NOTES
C43: =C3 -> 2018/2019 | D43: 50% BUDGET | E43: =E3 -> 2019/2020
A44: 45000-1 | B44: Tax Revenue | C44: 157431 | D44: 93153 | E44: 171881
A45: 44000 | B45: Interest/misc | C45: 300 | D45: 171 | E45: 300
A46: xfer out | B46: Fire Truck Pmt- Rolling stock | C46: 32786 | E46: 32786
A47: 46600-2 | B47: Strike Team Income | C47: 50000 | D47: 245044 | E47: 50000
A48: 48100-2 | B48: Gain/Loss Sale of Asset | C48: 1 | D48: 0 | E48: 1
A49: 48550-2 | B49: Grant Revenue | C49: 1 | D49: 0 | E49: 1
A50: TOTAL REVENUE: | C50: =SUM(C44:C49) -> 240519 | D50: =SUM(D44:D49) -> 338368 | E50: =SUM(E44:E49) -> 254969
A52: ACCT# | B52: CAPITOL EXPENDITURES | C52: =C2 -> BUDGET | D52: =D2 -> 2018/2019 | E52: BUDGET
C53: =C3 -> 2018/2019 | D53: 50% BUDGET | E53: =E3 -> 2019/2020
A54: 12430-2 | B54: Grant Purchases | C54: 1 | E54: 1
A55: xfer in | B55: Fire Truck Pmt | C55: 32786 | E55: 32786
B56: New C-41 Vehicle | E56: 7500
B57: 2 SCBAs | C57: 6000 | E57: 12000
A58: xfer out | B58: To Rolling Stock Acct | C58: 25000 | E58: 25000
A59: TOTAL CAPITAL EXPENDITURES: | C59: =SUM(C54:C58) -> 63787 | D59: =SUM(D54:D58) -> 0 | E59: =SUM(E54:E58) -> 77287
A61: BUDGET SURPLUS/DEFICIT: | C61: =C50-(C32+C59) -> 0 | D61: =D50-(D32+D59) -> 31949 | E61: =E50-(E32+E59) -> 0

Sheet Website Copy
A2: ACCT# | B2: EXPENSES | C2: BUDGET | D2: 2018/2019 | E2: BUDGET
B3: DESCRIPTION | C3: 2018/2019 | D3: 50% BUDGET | E3: 2019/2020
A4: 59022-2 | B4: Fire Vehicle Maintenance | C4: 5700 | D4: 2700 | E4: 3000
A5: 59040-2 | B5: Shop Supply/ Tools/ Equip | C5: 3500 | D5: 336 | E5: 2000
A6: 59043-2 | B6: Tires | C6: 750 | D6: 1556 | E6: 1200
A7: 59060-2 | B7: Radio Equipment | C7: 1500 | D7: 1162 | E7: 1500
A8: 59065-2 | B8: Clothing | C8: 2000 | D8: 244 | E8: 3000
A9: 59066-2 | B9: Foam / Fire Extinguishers | C9: 300 | D9: 186 | E9: 300
A10: 59070-2 | B10: Gen Medical / Fire Supply | C10: 3000 | D10: 760 | E10: 2100
A11: 59072-2 | B11: Office | C11: 700 | D11: 436 | E11: 700
A12: 59075-2 | B12: Fire Hose | C12: 800 | D12: 0 | E12: 800
A13: 59092-2 | B13: Annual Physicals | C13: 1100 | D13: 620 | E13: 1100
A14: 59093-2 | B14: Fire Protection | C14: 100 | D14: 0 | E14: 200
A15: 59100-2 | B15: FD Administrative Exp | C15: 29500 | D15: 14712 | E15: 30375
A16: 59101-2 | B16: Dues & Subscriptions | C16: 1400 | D16: 362 | E16: 1000
A17: 59110-2 | B17: Volunteer Expense | C17: 1500 | D17: 94 | E17: 1500
A18: 59120-2 | B18: Chief's Compensation | C18: 20941 | D18: 11180 | E18: 21928
A19: 59130-2 | B19: Drill & Response | C19: 11000 | D19: 4781 | E19: 11000
A20: 59140-2 | B20: Travel Expense | C20: 100 | D20: 0 | E20: 100
A21: 59200-2 | B21: Workers Comp. | C21: 11730 | D21: 6110 | E21: 19000
A22: 59320-2 | B22: FICA Exp | C22: 2484 | D22: 17088 | E22: 1615
A23: 59079-2 | B23: Fuel Expense | C23: 8500 | D23: 5253 | E23: 7500
A24: 59090-2 | B24: Training Expense | C24: 600 | D24: 0 | E24: 600
A25: 59330-2 | B25: Unemployment Exp. | C25: 2290 | D25: 1650 | E25: 378
A26: 59340-2 | B26: SDI Exp. | C26: 158 | D26: 1035 | E26: 110
A27: 59501-2 | B27: SCBA Testing | C27: 1200 | D27: 0 | E27: 1200
A28: 59610-2 | B28: Strike Team Wages Exp. | C28: 25000 | D28: 208102 | E28: 25000
A29: 59620-2 | B29: Strike Team Expense | C29: 1 | D29: 5165 | E29: 1
A30: 59630-2 | B30: Grant Writing | C30: 1000 | D30: 2040 | E30: 1000
A31: Xfer Out | B31: CSD Budget Expense | C31: 39878 | D31: 20847 | E31: 39475
B32: TOTAL COLUMN | C32: =SUM(C4:C31) -> 176732 | D32: =SUM(D4:D31) -> 306419 | E32: =SUM(E4:E31) -> 177682
A42: ACCT # | B42: REVENUE | C42: =C2 -> BUDGET | D42: =D2 -> 2018/2019 | E42: BUDGET
C43: =C3 -> 2018/2019 | D43: 50% BUDGET | E43: =E3 -> 2019/2020
A44: 45000-1 | B44: Tax Revenue | C44: 157431 | D44: 93153 | E44: 171881
A45: 44000 | B45: Interest/misc | C45: 300 | D45: 171 | E45: 300
A46: xfer out | B46: Fire Truck Pmt- Rolling stock | C46: 32786 | E46: 32786
A47: 46600-2 | B47: Strike Team Income | C47: 50000 | D47: 245044 | E47: 50000
A48: 48100-2 | B48: Gain/Loss Sale of Asset | C48: 1 | D48: 0 | E48: 1
A49: 48550-2 | B49: Grant Revenue | C49: 1 | D49: 0 | E49: 1
A50: TOTAL REVENUE: | C50: =SUM(C44:C49) -> 240519 | D50: =SUM(D44:D49) -> 338368 | E50: =SUM(E44:E49) -> 254969
A52: ACCT# | B52: CAPITOL EXPENDITURES | C52: =C2 -> BUDGET | D52: =D2 -> 2018/2019 | E52: BUDGET
C53: =C3 -> 2018/2019 | D53: 50% BUDGET | E53: =E3 -> 2019/2020
A54: 12430-2 | B54: Grant Purchases | C54: 1 | E54: 1
A55: xfer in | B55: Fire Truck Pmt | C55: 32786 | E55: 32786
B56: New C-41 Vehicle | E56: 7500
B57: 2 SCBAs | C57: 6000 | E57: 12000
A58: xfer out | B58: To Rolling Stock Acct | C58: 25000 | E58: 25000
A59: TOTAL CAPITAL EXPENDITURES: | C59: =SUM(C54:C58) -> 63787 | D59: =SUM(D54:D58) -> 0 | E59: =SUM(E54:E58) -> 77287
A61: BUDGET SURPLUS/DEFICIT: | C61: =C50-(C32+C59) -> 0 | D61: =D50-(D32+D59) -> 31949 | E61: =E50-(E32+E59) -> 0

Sheet 19.20 Operating
A2: ACCT# | B2: EXPENSES | C2: BUDGET
B3: DESCRIPTION | C3: 2019/2020
A4: 59022-2 | B4: Fire Vehicle Maintenance | C4: 3000
A5: 59040-2 | B5: Shop Supply/ Tools/ Equip | C5: 2000
A6: 59043-2 | B6: Tires | C6: 1200
A7: 59060-2 | B7: Radio Equipment | C7: 1500
A8: 59065-2 | B8: Clothing | C8: 3000
A9: 59066-2 | B9: Foam / Fire Extinguishers | C9: 300
A10: 59070-2 | B10: Gen Medical / Fire Supply | C10: 2100
A11: 59072-2 | B11: Office | C11: 700
A12: 59075-2 | B12: Fire Hose | C12: 800
A13: 59092-2 | B13: Annual Physicals | C13: 1100
A14: 59093-2 | B14: Fire Protection | C14: 200
A15: 59100-2 | B15: FD Administrative Exp | C15: 30375
A16: 59101-2 | B16: Dues & Subscriptions | C16: 1000
A17: 59110-2 | B17: Volunteer Expense | C17: 1500
A18: 59120-2 | B18: Chief's Compensation | C18: 21928
A19: 59130-2 | B19: Drill & Response | C19: 11000
A20: 59140-2 | B20: Travel Expense | C20: 100
A21: 59200-2 | B21: Workers Comp. | C21: 19000
A22: 59320-2 | B22: FICA Exp | C22: 1615
A23: 59079-2 | B23: Fuel Expense | C23: 7500
A24: 59090-2 | B24: Training Expense | C24: 600
A25: 59330-2 | B25: Unemployment Exp. | C25: 378
A26: 59340-2 | B26: SDI Exp. | C26: 110
A27: 59501-2 | B27: SCBA Testing | C27: 1200
A28: 59610-2 | B28: Strike Team Wages Exp. | C28: 25000
A29: 59620-2 | B29: Strike Team Expense | C29: 1
A30: 59630-2 | B30: Grant Writing | C30: 1000
A31: Xfer Out | B31: CSD Budget Expense | C31: 39475
B32: TOTAL COLUMN | C32: =SUM(C4:C31) -> 177682
A42: ACCT # | B42: REVENUE | C42: BUDGET
C43: =C3 -> 2019/2020
A44: 45000-1 | B44: Tax Revenue | C44: 171881
A45: 44000 | B45: Interest/misc | C45: 300
A46: xfer out | B46: Fire Truck Pmt- Rolling stock | C46: 32786
A47: 46600-2 | B47: Strike Team Income | C47: 50000
A48: 48100-2 | B48: Gain/Loss Sale of Asset | C48: 1
A49: 48550-2 | B49: Grant Revenue | C49: 1
A50: TOTAL REVENUE: | C50: =SUM(C44:C49) -> 254969
A52: ACCT# | B52: CAPITOL EXPENDITURES | C52: BUDGET
C53: =C3 -> 2019/2020
A54: 12430-2 | B54: Grant Purchases | C54: 1
A55: xfer in | B55: Fire Truck Pmt | C55: 32786
B56: New C-41 Vehicle | C56: 7500
B57: 2 SCBAs | C57: 12000
A58: xfer out | B58: To Rolling Stock Acct | C58: 25000
A59: TOTAL CAPITAL EXPENDITURES: | C59: =SUM(C54:C58) -> 77287
A61: BUDGET SURPLUS/DEFICIT: | C61: =C50-(C32+C59) -> 0

Sheet Sheet1

Sheet Qtr 1
A1: ACCT# | B1: EXPENSES | C1: BUDGET | D1: Previous | E1: Month | F1: Month | G1: Month | H1: Year to Date | I1: Budget | J1: %
B2: DESCRIPTION | C2: 2019/2020 | D2: Quarter | E2: 2020-07-01 | F2: 2020-08-01 | G2: 2020-09-01 | H2: Totals | I2: Remaining | J2: Left
A3: 59022-2 | B3: Fire Vehicle Maintenance | C3: 4000 | E3: 34 | F3: 89 | G3: 436 | H3: =D3+E3+F3+G3 -> 559 | I3: =C3-(D3+E3+F3+G3) -> 3441 | J3: =I3/C3 -> 0.86025
A4: 59040-2 | B4: Shop Supply/ Tools/ Equip | C4: 2000 | E4: 115 | F4: 96 | H4: =D4+E4+F4+G4 -> 211 | I4: =C4-(D4+E4+F4+G4) -> 1789 | J4: =I4/C4 -> 0.8945
A5: 59043-2 | B5: Tires | C5: 1400 | E5: 20 | F5: 1660 | H5: =D5+E5+F5+G5 -> 1680 | I5: -280 | J5: -0.2
A6: 59060-2 | B6: Radio Equipment | C6: 1500 | F6: 163 | G6: 2500 | H6: 2663 | I6: -1163 | J6: -0.7753333333
A7: 59065-2 | B7: Clothing | C7: 4200 | F7: 798 | G7: 190 | H7: 988 | I7: 3212 | J7: 0.7647619048
A8: 59066-2 | B8: Foam / Fire Extinguishers | C8: 400 | F8: 414 | H8: 414 | I8: -14 | J8: -0.035
A9: 59070-2 | B9: Gen Medical / Fire Supply | C9: 2200 | F9: 50 | G9: 11 | H9: 61 | I9: 2139 | J9: 0.9722727273
A10: 59072-2 | B10: Office | C10: 700 | E10: 183 | H10: 183 | I10: 517 | J10: 0.7385714286
A11: 59075-2 | B11: Fire Hose | C11: 800 | F11: 363 | G11: 178 | H11: 541 | I11: 259 | J11: 0.32375
A12: 59079-2 | B12: Fuel Expense | C12: 6500 | E12: 258 | F12: 1050 | G12: 403 | H12: 1711 | I12: 4789 | J12: 0.7367692308
A13: 59090-2 | B13: Training Expense | C13: 600 | F13: 270 | H13: 270 | I13: 330 | J13: 0.55
A14: 59092-2 | B14: Annual Physicals | C14: 1000 | H14: 0 | I14: 1000 | J14: 1
A15: 59093-2 | B15: Fire Protection | C15: 200 | H15: 0 | I15: 200 | J15: 1
A16: 59100-2 | B16: FD Administrative Exp | C16: 30861 | E16: 2571 | F16: 2571 | G16: 2571 | H16: 7713 | I16: 23148 | J16: 0.7500729076
A17: 59101-2 | B17: Dues & Subscriptions | C17: 1300 | F17: 400 | H17: 400 | I17: 900 | J17: 0.6923076923
A18: 59110-2 | B18: Volunteer Expense | C18: 1500 | E18: 22 | F18: 40 | H18: 62 | I18: 1438 | J18: 0.9586666667
A19: 59120-2 | B19: Chief's Compensation | C19: 22279 | E19: 1829 | F19: 1844 | G19: 1859 | H19: 5532 | I19: 16747 | J19: 0.7516944208
A20: 59130-2 | B20: Drill & Response | C20: 10000 | H20: 0 | I20: 10000 | J20: 1
A21: 59140-2 | B21: Travel Expense | C21: 100 | H21: 0 | I21: 100 | J21: 1
A22: 59200-2 | B22: Workers Comp. | C22: 14997 | E22: 3643 | H22: 3643 | I22: 11354 | J22: 0.7570847503
A23: 59320-2 | B23: FICA Exp | C23: 1700 | E23: 912 | F23: 10294 | G23: 366 | H23: 11572 | I23: -9872 | J23: -5.807058824
A24: 59330-2 | B24: Unemployment Exp. | C24: 378 | E24: 150 | F24: 1129 | G24: 8 | H24: 1287 | I24: -909 | J24: -2.404761905
A25: 59340-2 | B25: SDI Exp. | C25: 110 | E25: 68 | F25: 682 | G25: 33 | H25: 783 | I25: -673 | J25: -6.118181818
A26: 59501-2 | B26: SCBA Testing | C26: 1200 | H26: 0 | I26: 1200 | J26: 1
A27: 59610-2 | B27: Strike Team Wages Exp. | C27: 25000 | E27: 4132 | F27: 65436 | G27: 533 | H27: 70101 | I27: -45101 | J27: -1.80404
A28: 59620-2 | B28: Strike Team Expense | C28: 500 | E28: 162 | F28: 1141 | G28: 857 | H28: 2160 | I28: -1660 | J28: -3.32
A29: 59630-2 | B29: Grant Writing | C29: 750 | H29: 0 | I29: 750 | J29: 1
A30: Xfer Out | B30: CSD Budget Expense | C30: 42225 | E30: 6503 | F30: 1455 | G30: 1350 | H30: =D30+E30+F30+G30 -> 9308 | I30: 32917 | J30: 0.7795618709
B31: TOTAL COLUMN | C31: =SUM(C3:C30) -> 178400 | D31: =SUM(D3:D30) -> 0 | E31: =SUM(E3:E30) -> 20602 | F31: =SUM(F3:F30) -> 89945 | G31: =SUM(G3:G30) -> 11295 | H31: 121842 | I31: 56558 | J31: 0.317029148
A33: ACCT # | B33: REVENUE | C33: =C1 -> BUDGET | D33: Previous | E33: Month | F33: Month | G33: Month | H33: Year to Date | I33: Budget | J33: %
C34: 2019/2020 | D34: Quarter | E34: 2020-07-01 | F34: 2020-08-01 | G34: 2020-09-01 | H34: Totals | I34: Remaining | J34: Left
A35: 45000-1 | B35: Tax Revenue | C35: 169543 | G35: 14093 | H35: =SUM(D35:G35) -> 14093 | I35: =C35-H35 -> 155450 | J35: =I35/C35 -> 0.9168765446
A36: 44000 | B36: Interest/misc | C36: 800 | E36: 104 | F36: 100 | G36: 95 | H36: 299 | I36: =C36-H36 -> 501 | J36: 0.62625
A37: xfer out | B37: Fire Truck Pmt- Rolling stock | C37: 32786 | H37: 0 | I37: =C37-H37 -> 32786 | J37: 1
A38: 46600-2 | B38: Strike Team Income | C38: 50000 | H38: 0 | I38: 50000 | J38: 1
A39: 48100-2 | B39: Gain/Loss Sale of Asset | C39: 1 | H39: 0 | I39: 1 | J39: 1
A40: 48550-2 | B40: Grant Revenue- donation | C40: 1 | F40: 100 | H40: 100 | I40: -99 | J40: -99
A41: TOTAL REVENUE: | C41: =SUM(C35:C40) -> 253131 | D41: 0 | E41: 104 | F41: 200 | G41: 14188 | H41: 14492 | I41: 238639 | J41: 0.9427490114
A43: ACCT# | B43: CAPITOL EXPENDITURES | C43: =C1 -> BUDGET | D43: Previous | E43: Month | F43: Month | G43: Month | H43: Year to Date | I43: Budget | J43: %
C44: 2019/2020 | D44: Quarter | E44: 2020-07-01 | F44: 2020-08-01 | G44: 2020-09-01 | H44: Totals | I44: Remaining | J44: Left
A45: 12430-2 | B45: Grant Purchases | C45: 1 | H45: =SUM(D45:G45) -> 0 | I45: =C45-H45 -> 1 | J45: =I45/C45 -> 1
A46: xfer in | B46: Fire Truck Pmt | C46: 32786 | H46: =SUM(D46:G46) -> 0 | I46: 32786 | J46: 1
A47: 12350-2 | B47: 2 SCBAs | C47: 9500 | G47: 9009 | H47: =SUM(D47:G47) -> 9009 | I47: 491 | J47: 0.05168421053
B48: 2019 Fire Chiefs Rig | C48: 7444 | E48: 620 | F48: 620 | G48: 620 | H48: =SUM(D48:G48) -> 1860 | I48: 5584 | J48: 0.7501343364
A49: xfer out | B49: To Rolling Stock Acct | C49: 25000 | H49: =SUM(D49:G49) -> 0 | I49: 25000 | J49: 1
A50: TOTAL CAPITAL EXPENDITURES: | C50: =SUM(C45:C49) -> 74731 | D50: 0 | E50: 620 | F50: 620 | G50: 9629 | H50: 10869 | I50: 63862 | J50: 0.8545583493
A52: BUDGET SURPLUS/DEFICIT: | C52: =C41-(C31+C50) -> 0 | D52: 0 | E52: -21118 | F52: -90365 | G52: -6736 | H52: -118219 | I52: 118219

Sheet Qtr 2
A1: ACCT# | B1: EXPENSES | C1: 2021-2022
B2: DESCRIPTION | C2: FD Budget
A3: 59022-2 | B3: Fire Vehicle Maintenance | C3: 4000
A4: 59040-2 | B4: Shop Supply/ Tools/ Equip | C4: 2000
A5: 59043-2 | B5: Tires | C5: 1200
A6: 59060-2 | B6: Radio Equipment | C6: 1500
A7: 59065-2 | B7: Clothing | C7: 3000
A8: 59066-2 | B8: Foam / Fire Extinguishers | C8: 300
A9: 59070-2 | B9: Gen Medical / Fire Supply | C9: 1800
A10: 59072-2 | B10: Office | C10: 700
A11: 59075-2 | B11: Fire Hose | C11: 800
A12: 59079-2 | B12: Fuel Expense | C12: 7500
A13: 59090-2 | B13: Training Expense | C13: 1000
A14: 59092-2 | B14: Annual Physicals | C14: 1500
A15: 59093-2 | B15: Fire Protection | C15: 200
A16: 59100-2 | B16: FD Administrative Exp | C16: 30375
A17: 59101-2 | B17: Dues & Subscriptions | C17: 1000
A18: 59110-2 | B18: Volunteer Expense | C18: 1500
A19: 59120-2 | B19: Chief's Compensation | C19: 21928
A20: 59130-2 | B20: Drill & Response | C20: 10000
A21: 59140-2 | B21: Travel Expense | C21: 100
A22: 59200-2 | B22: Workers Comp. | C22: 19000
A23: 59320-2 | B23: FICA Exp | C23: 1615
A24: 59330-2 | B24: Unemployment Exp. | C24: 378
A25: 59340-2 | B25: SDI Exp. | C25: 110
A26: 59501-2 | B26: SCBA Testing | C26: 1200
A27: 59610-2 | B27: Strike Team Wages Exp. | C27: 25000
A28: 59620-2 | B28: Strike Team Expense | C28: 1
A29: 59630-2 | B29: Grant Writing | C29: 500
A30: Xfer Out | B30: CSD Budget Expense | C30: 39475
B31: TOTAL | C31: =SUM(C3:C30) -> 177682
A36: ACCT # | B36: REVENUE | C36: 2021-2022
C37: FD Budget
A38: 45000-1 | B38: Tax Revenue | C38: 171881
A39: 44000 | B39: Interest/misc | C39: 300
A40: xfer out | B40: Fire Truck Pmt- Rolling stock | C40: 32786
A41: 46600-2 | B41: Strike Team Income | C41: 50000
A42: 48100-2 | B42: Gain/Loss Sale of Asset | C42: 1
A43: 48550-2 | B43: Grant Revenue- donation | C43: 1
B44: TOTAL REVENUE: | C44: =SUM(C38:C43) -> 254969
A46: ACCT# | B46: CAPITOL EXPENDITURES | C46: 2021-2022
C47: FD Budget
A48: 12430-2 | B48: Grant Purchases | C48: 1
A49: 12403-2 | B49: SCBA | C49: 12000
A50: xfer in | B50: Fire Truck Pmt | C50: 32786
A51: over bug | B51: 2019 Fire Chiefs Rig | C51: 7500
A52: xfer out | B52: To Rolling Stock Acct | C52: 25000
B53: TOTAL CAPITAL EXPENDITURES: | C53: =SUM(C48:C52) -> 77287
A55: BUDGET SURPLUS/DEFICIT: | C55: =C44-(C31+C53) -> 0

Sheet Qtr 3
A1: ACCT# | B1: EXPENSES | C1: BUDGET | D1: Previous | E1: Month | F1: Month | G1: Month | H1: Year to Date | I1: Budget | J1: %
B2: DESCRIPTION | C2: 2019/2020 | D2: Quarter | E2: 2020-01-01 | F2: 2020-02-01 | G2: 2020-03-01 | H2: Totals | I2: Remaining | J2: Left
A3: 59022-2 | B3: Fire Vehicle Maintenance | C3: 3000 | D3: 3653 | E3: 232 | F3: 2719 | G3: 1414 | H3: =D3+E3+F3+G3 -> 8018 | I3: =C3-(D3+E3+F3+G3) -> -5018 | J3: =I3/C3 -> -1.672666667
A4: 59040-2 | B4: Shop Supply/ Tools/ Equip | C4: 2000 | D4: 619 | E4: 432 | G4: 55 | H4: =D4+E4+F4+G4 -> 1106 | I4: =C4-(D4+E4+F4+G4) -> 894 | J4: =I4/C4 -> 0.447
A5: 59043-2 | B5: Tires | C5: 1200 | D5: 2339 | E5: 23 | F5: 449 | H5: =D5+E5+F5+G5 -> 2811 | I5: -1611 | J5: -1.3425
A6: 59060-2 | B6: Radio Equipment | C6: 1500 | D6: 1682 | E6: 1071 | F6: 575 | G6: 144 | H6: 3472 | I6: -1972 | J6: -1.314666667
A7: 59065-2 | B7: Clothing | C7: 3000 | D7: 1239 | F7: 799 | G7: 1279 | H7: 3317 | I7: -317 | J7: -0.1056666667
A8: 59066-2 | B8: Foam / Fire Extinguishers | C8: 300 | D8: 389 | H8: 389 | I8: -89 | J8: -0.2966666667
A9: 59070-2 | B9: Gen Medical / Fire Supply | C9: 2100 | D9: 2106 | E9: 26 | F9: 11 | G9: 681 | H9: 2824 | I9: -724 | J9: -0.3447619048
A10: 59072-2 | B10: Office | C10: 700 | D10: 365 | E10: 200 | H10: 565 | I10: 135 | J10: 0.1928571429
A11: 59075-2 | B11: Fire Hose | C11: 800 | D11: 195 | H11: 195 | I11: 605 | J11: 0.75625
A12: 59079-2 | B12: Fuel Expense | C12: 7500 | D12: 5306 | E12: 472 | F12: 876 | G12: 550 | H12: =D12+E12+F12+G12 -> 7204 | I12: =C12-(D12+E12+F12+G12) -> 296 | J12: =I12/C12 -> 0.03946666667
A13: 59090-2 | B13: Training Expense | C13: 600 | D13: 229 | H13: 229 | I13: 371 | J13: 0.6183333333
A14: 59092-2 | B14: Annual Physicals | C14: 1100 | D14: 120 | H14: 120 | I14: 980 | J14: 0.8909090909
A15: 59093-2 | B15: Fire Protection | C15: 200 | D15: 0 | G15: 90 | H15: 90 | I15: 110 | J15: 0.55
A16: 59100-2 | B16: FD Administrative Exp | C16: 30375 | D16: 15186 | E16: 2531 | F16: 2531 | G16: 2531 | H16: 22779 | I16: 7596 | J16: 0.2500740741
A17: 59101-2 | B17: Dues & Subscriptions | C17: 1000 | D17: 300 | H17: 300 | I17: 700 | J17: 0.7
A18: 59110-2 | B18: Volunteer Expense | C18: 1500 | D18: 502 | F18: 62 | H18: 564 | I18: 936 | J18: 0.624
A19: 59120-2 | B19: Chief's Compensation | C19: 21928 | D19: 10065 | E19: 1830 | F19: 1830 | G19: 1830 | H19: 15555 | I19: 6373 | J19: 0.2906329807
A20: 59130-2 | B20: Drill & Response | C20: 11000 | D20: 6694 | H20: 6694 | I20: 4306 | J20: 0.3914545455
A21: 59140-2 | B21: Travel Expense | C21: 100 | D21: 100 | H21: 100 | I21: 0 | J21: 0
A22: 59200-2 | B22: Workers Comp. | C22: 19000 | D22: 7662 | E22: 3831 | G22: 14216 | H22: 25709 | I22: -6709 | J22: -0.3531052632
A23: 59320-2 | B23: FICA Exp | C23: 1615 | D23: 3880 | E23: 140 | F23: 140 | G23: 140 | H23: 4300 | I23: -2685 | J23: -1.6625387
A24: 59330-2 | B24: Unemployment Exp. | C24: 378 | D24: 2024 | E24: 148 | F24: 129 | G24: 86 | H24: =D24+E24+F24+G24 -> 2387 | I24: -2009 | J24: -5.314814815
A25: 59340-2 | B25: SDI Exp. | C25: 110 | D25: 116 | E25: 9 | F25: 9 | G25: 9 | H25: =D25+E25+F25+G25 -> 143 | I25: -33 | J25: -0.3
A26: 59501-2 | B26: SCBA Testing | C26: 1200 | D26: 0 | H26: 0 | I26: 1200 | J26: 1
A27: 59610-2 | B27: Strike Team Wages Exp. | C27: 25000 | D27: 34241 | H27: 34241 | I27: -9241 | J27: -0.36964
A28: 59620-2 | B28: Strike Team Expense | C28: 1 | D28: 458 | H28: 458 | I28: -457 | J28: -457
A29: 59630-2 | B29: Grant Writing | C29: 1000 | D29: 0 | H29: 0 | I29: 1000 | J29: 1
A30: Xfer Out | B30: CSD Budget Expense | C30: 39475 | D30: 28633 | E30: 2008 | F30: 1584 | G30: 935 | H30: =D30+E30+F30+G30 -> 33160 | I30: 6315 | J30: 0.1599746675
B31: TOTAL COLUMN | C31: =SUM(C3:C30) -> 177682 | D31: =SUM(D3:D30) -> 128103 | E31: =SUM(E3:E30) -> 12953 | F31: =SUM(F3:F30) -> 11714 | G31: =SUM(G3:G30) -> 23960 | H31: 176730 | I31: 952 | J31: 0.005357886561
A33: ACCT # | B33: REVENUE | C33: =C1 -> BUDGET | D33: Previous | E33: Month | F33: Month | G33: Month | H33: Year to Date | I33: Budget | J33: %
C34: 2019/2020 | D34: Quarter | E34: 2020-01-01 | F34: 2020-02-01 | G34: 2020-03-01 | H34: Totals | I34: Remaining | J34: Left
A35: 45000-1 | B35: Tax Revenue | C35: 171881 | D35: 147237 | H35: =SUM(D35:G35) -> 147237 | I35: =C35-H35 -> 24644 | J35: =I35/C35 -> 0.1433782675
A36: 44000 | B36: Interest/misc | C36: 300 | D36: 1391 | E36: 119 | F36: 107 | G36: 200 | H36: 1817 | I36: =C36-H36 -> -1517 | J36: -5.056666667
A37: xfer out | B37: Fire Truck Pmt- Rolling stock | C37: 32786 | H37: 0 | I37: =C37-H37 -> 32786 | J37: 1
A38: 46600-2 | B38: Strike Team Income | C38: 50000 | D38: 23869 | E38: 21965 | F38: 19540 | H38: 65374 | I38: -15374 | J38: -0.30748
A39: 48100-2 | B39: Gain/Loss Sale of Asset | C39: 1 | H39: 0 | I39: 1 | J39: 1
A40: 48550-2 | B40: Grant Revenue- donation | C40: 1 | F40: 2625 | H40: 2625 | I40: -2624 | J40: -2624
A41: TOTAL REVENUE: | C41: =SUM(C35:C40) -> 254969 | D41: 172497 | E41: 22084 | F41: 22272 | G41: 200 | H41: 217053 | I41: 37916 | J41: 0.1487082743
A43: ACCT# | B43: CAPITOL EXPENDITURES | C43: =C1 -> BUDGET | D43: Previous | E43: Month | F43: Month | G43: Month | H43: Year to Date | I43: Budget | J43: %
C44: 2019/2020 | D44: Quarter | E44: 2020-01-01 | F44: 2020-02-01 | G44: 2020-03-01 | H44: Totals | I44: Remaining | J44: Left
A45: 12430-2 | B45: Grant Purchases | C45: 1 | D45: 4412 | H45: =SUM(D45:G45) -> 4412 | I45: =C45-H45 -> -4411 | J45: =I45/C45 -> -4411
A46: xfer in | B46: Fire Truck Pmt | C46: 32786 | E46: 32786 | H46: =SUM(D46:G46) -> 32786 | I46: 0 | J46: 0
B47: 2 SCBAs | C47: 12000 | D47: 15922 | H47: =SUM(D47:G47) -> 15922 | I47: -3922 | J47: -0.3268333333
A48: over bug | B48: 2019 Fire Chiefs Rig | C48: 7500 | D48: 4317 | E48: 620 | F48: 620 | G48: 620 | H48: =SUM(D48:G48) -> 6177 | I48: 1323
A49: xfer out | B49: To Rolling Stock Acct | C49: 25000 | H49: =SUM(D49:G49) -> 0 | I49: 25000 | J49: 1
A50: TOTAL CAPITAL EXPENDITURES: | C50: =SUM(C45:C49) -> 77287 | D50: 24651 | E50: 33406 | F50: 620 | G50: 620 | H50: 59297 | I50: 17990 | J50: 0.2327687709
A52: BUDGET SURPLUS/DEFICIT: | C52: =C41-(C31+C50) -> 0 | D52: 19743 | E52: -24275 | F52: 9938 | G52: -24380 | H52: -18974 | I52: 18974

Sheet Qtr 4
A1: ACCT# | B1: EXPENSES | C1: BUDGET | D1: Previous | E1: Month | F1: Month | G1: Month | H1: Year to Date | I1: Budget | J1: %
B2: DESCRIPTION | C2: 2019/2020 | D2: Quarter | E2: 2020-04-01 | F2: 2020-05-01 | G2: 2020-06-01 | H2: Totals | I2: Remaining | J2: Left
A3: 59022-2 | B3: Fire Vehicle Maintenance | C3: 3000 | D3: 8018 | F3: 311 | G3: 394 | H3: =D3+E3+F3+G3 -> 8723 | I3: =C3-(D3+E3+F3+G3) -> -5723 | J3: =I3/C3 -> -1.907666667
A4: 59040-2 | B4: Shop Supply/ Tools/ Equip | C4: 2000 | D4: 1106 | E4: 123 | F4: 280 | G4: 444 | H4: =D4+E4+F4+G4 -> 1953 | I4: =C4-(D4+E4+F4+G4) -> 47 | J4: =I4/C4 -> 0.0235
A5: 59043-2 | B5: Tires | C5: 1200 | D5: 2811 | G5: 125 | H5: =D5+E5+F5+G5 -> 2936 | I5: -1736 | J5: -1.446666667
A6: 59060-2 | B6: Radio Equipment | C6: 1500 | D6: 3472 | F6: 163 | H6: 3635 | I6: -2135 | J6: -1.423333333
A7: 59065-2 | B7: Clothing | C7: 3000 | D7: 3317 | E7: 136 | F7: 429 | H7: 3882 | I7: -882 | J7: -0.294
A8: 59066-2 | B8: Foam / Fire Extinguishers | C8: 300 | D8: 389 | H8: 389 | I8: -89 | J8: -0.2966666667
A9: 59070-2 | B9: Gen Medical / Fire Supply | C9: 2100 | D9: 2824 | E9: -60 | F9: 12 | G9: 530 | H9: 3306 | I9: -1206 | J9: -0.5742857143
A10: 59072-2 | B10: Office | C10: 700 | D10: 565 | E10: 398 | G10: 40 | H10: 1003 | I10: -303 | J10: -0.4328571429
A11: 59075-2 | B11: Fire Hose | C11: 800 | D11: 195 | G11: 759 | H11: 954 | I11: -154 | J11: -0.1925
A12: 59079-2 | B12: Fuel Expense | C12: 7500 | D12: 7204 | E12: 419 | F12: 478 | G12: 910 | H12: =D12+E12+F12+G12 -> 9011 | I12: =C12-(D12+E12+F12+G12) -> -1511 | J12: =I12/C12 -> -0.2014666667
A13: 59090-2 | B13: Training Expense | C13: 600 | D13: 229 | H13: 229 | I13: 371 | J13: 0.6183333333
A14: 59092-2 | B14: Annual Physicals | C14: 1100 | D14: 120 | H14: 120 | I14: 980 | J14: 0.8909090909
A15: 59093-2 | B15: Fire Protection | C15: 200 | D15: 90 | E15: 50 | H15: 140 | I15: 60 | J15: 0.3
A16: 59100-2 | B16: FD Administrative Exp | C16: 30375 | D16: 22779 | E16: 2531 | F16: 2531 | G16: 2531 | H16: 30372 | I16: 3 | J16: 9.87654321e-05
A17: 59101-2 | B17: Dues & Subscriptions | C17: 1000 | D17: 300 | E17: 990 | H17: 1290 | I17: -290 | J17: -0.29
A18: 59110-2 | B18: Volunteer Expense | C18: 1500 | D18: 564 | F18: 526 | G18: 381 | H18: 1471 | I18: 29 | J18: 0.01933333333
A19: 59120-2 | B19: Chief's Compensation | C19: 21928 | D19: 15555 | E19: 1830 | F19: 1830 | G19: 1830 | H19: 21045 | I19: 883 | J19: 0.04026815031
A20: 59130-2 | B20: Drill & Response | C20: 11000 | D20: 6694 | G20: 3751 | H20: 10445 | I20: 555 | J20: 0.05045454545
A21: 59140-2 | B21: Travel Expense | C21: 100 | D21: 100 | H21: 100 | I21: 0 | J21: 0
A22: 59200-2 | B22: Workers Comp. | C22: 19000 | D22: 25709 | E22: 3831 | H22: 29540 | I22: -10540 | J22: -0.5547368421
A23: 59320-2 | B23: FICA Exp | C23: 1615 | D23: 4300 | E23: 140 | F23: 140 | G23: 427 | H23: 5007 | I23: -3392 | J23: -2.100309598
A24: 59330-2 | B24: Unemployment Exp. | C24: 378 | D24: 2387 | E24: 80 | G24: 197 | H24: =D24+E24+F24+G24 -> 2664 | I24: -2286 | J24: -6.047619048
A25: 59340-2 | B25: SDI Exp. | C25: 110 | D25: 143 | E25: 14 | F25: 4 | G25: 4 | H25: =D25+E25+F25+G25 -> 165 | I25: -55 | J25: -0.5
A26: 59501-2 | B26: SCBA Testing | C26: 1200 | D26: 0 | G26: 1240 | H26: 1240 | I26: -40 | J26: -0.03333333333
A27: 59610-2 | B27: Strike Team Wages Exp. | C27: 25000 | D27: 34241 | H27: 34241 | I27: -9241 | J27: -0.36964
A28: 59620-2 | B28: Strike Team Expense | C28: 1 | D28: 458 | H28: 458 | I28: -457 | J28: -457
A29: 59630-2 | B29: Grant Writing | C29: 1000 | D29: 0 | H29: 0 | I29: 1000 | J29: 1
A30: Xfer Out | B30: CSD Budget Expense | C30: 39475 | D30: 33160 | E30: 1345 | F30: 1554 | G30: 4244 | H30: =D30+E30+F30+G30 -> 40303 | I30: -828 | J30: -0.02097530082
B31: TOTAL COLUMN | C31: =SUM(C3:C30) -> 177682 | D31: =SUM(D3:D30) -> 176730 | E31: =SUM(E3:E30) -> 11827 | F31: =SUM(F3:F30) -> 8258 | G31: =SUM(G3:G30) -> 17807 | H31: 214622 | I31: -36940 | J31: -0.2078995059
A33: ACCT # | B33: REVENUE | C33: =C1 -> BUDGET | D33: Previous | E33: Month | F33: Month | G33: Month | H33: Year to Date | I33: Budget | J33: %
C34: 2019/2020 | D34: Quarter | E34: 2020-04-01 | F34: 2020-05-01 | G34: 2020-06-01 | H34: Totals | I34: Remaining | J34: Left
A35: 45000-1 | B35: Tax Revenue | C35: 171881 | D35: 147237 | E35: 24644 | H35: =SUM(D35:G35) -> 171881 | I35: =C35-H35 -> 0 | J35: =I35/C35 -> 0
A36: 44000 | B36: Interest/misc | C36: 300 | D36: 1817 | E36: 116 | F36: 337 | G36: 100 | H36: 2370 | I36: =C36-H36 -> -2070 | J36: -6.9
A37: xfer out | B37: Fire Truck Pmt- Rolling stock | C37: 32786 | G37: 32786 | H37: 32786 | I37: =C37-H37 -> 0 | J37: 0
A38: 46600-2 | B38: Strike Team Income | C38: 50000 | D38: 65374 | H38: 65374 | I38: -15374 | J38: -0.30748
A39: 48100-2 | B39: Gain/Loss Sale of Asset | C39: 1 | H39: 0 | I39: 1 | J39: 1
A40: 48550-2 | B40: Grant Revenue- donation | C40: 1 | D40: 2625 | H40: 2625 | I40: -2624 | J40: -2624
A41: TOTAL REVENUE: | C41: =SUM(C35:C40) -> 254969 | D41: 217053 | E41: 24760 | F41: 337 | G41: 32886 | H41: 275036 | I41: -20067 | J41: -0.07870368555
A43: ACCT# | B43: CAPITOL EXPENDITURES | C43: =C1 -> BUDGET | D43: Previous | E43: Month | F43: Month | G43: Month | H43: Year to Date | I43: Budget | J43: %
C44: 2019/2020 | D44: Quarter | E44: 2020-04-01 | F44: 2020-05-01 | G44: 2020-06-01 | H44: Totals | I44: Remaining | J44: Left
A45: 12430-2 | B45: Grant Purchases | C45: 1 | D45: 4412 | F45: 1233 | H45: =SUM(D45:G45) -> 5645 | I45: =C45-H45 -> -5644 | J45: =I45/C45 -> -5644
A46: xfer in | B46: Fire Truck Pmt | C46: 32786 | D46: 32786 | H46: =SUM(D46:G46) -> 32786 | I46: 0 | J46: 0
A47: 12400-2 | B47: 2 SCBAs | C47: 12000 | D47: 15922 | H47: =SUM(D47:G47) -> 15922 | I47: -3922 | J47: -0.3268333333
A48: over bug | B48: 2019 Fire Chiefs Rig | C48: 7500 | D48: 6177 | E48: 620 | F48: 620 | G48: 620 | H48: =SUM(D48:G48) -> 8037 | I48: -537
A49: xfer out | B49: To Rolling Stock Acct | C49: 25000 | G49: 14188 | H49: =SUM(D49:G49) -> 14188 | I49: 10812 | J49: 0.43248
A50: TOTAL CAPITAL EXPENDITURES: | C50: =SUM(C45:C49) -> 77287 | D50: 59297 | E50: 620 | F50: 1853 | G50: 14808 | H50: 76578 | I50: 709 | J50: 0.0091735997
A52: BUDGET SURPLUS/DEFICIT: | C52: =C41-(C31+C50) -> 0 | D52: -18974 | E52: 12313 | F52: -9774 | G52: 271 | H52: -16164 | I52: 16164
